{"text_format":"3","workbook":"xlsx","n_sheets":4,"sheets":["Milepæler","Veikart","Om","Diagramdata"],"not_rendered":{"charts":1,"defined_names":2},"read":"whole","date_system":"1900"}

{"sheet":"Milepæler","index":0,"n_rows":27,"n_cols":5,"rows_kept":27}
["Opprett et veikart ved  å angi viktige milepæler og aktiviteter i regnearket.\nTittelen på dette regnearket finnes i celle C1. \nInformasjon om hvordan du bruker dette regnearket, inkludert instruksjoner for skjermlesere, finner du i Om-regnearket.\nFortsett å naviger ned i kolonne A for nærmere instruksjoner.",null,"Milepæler"]
["Tabelloverskrifter finnes i cellene C2 til E2. Bruk alternativer for sortering og filtrering for å sortere eller finne bestemte oppføringer.\nAngi milepæler med datoer og angi en posisjon for kartlegging av milepælen, i tabellen som begynner i celle C3.\nKolonne B er skjult. Diagrammet som genereres fra disse dataene ved bruk av et rullefelt for å vise deler av tidslinjen. Kolonne B bidrar til å fastslå hvilke milepæler som skal kartlegges når rullefeltet beveges i økende intervaller. \nAdvarsel: Hvis du sletter eller endrer innholdet i kolonne B, kan det forstyrre integriteten til kartleggingen som har blitt bygget inn i denne arbeisboken.","Nr.","Posisjon","Dato","Milepæl"]
["Angi en posisjon for kartlegging av datoen og milepælen i celle C1. Angi et positivt tall mellom 1 og 3 for å kartlegge milepælen ovenfor tidslinjen. Angi et negativt tall mellom 1 og 3 for å kartlegge milepælen nedenfor tidslinjen.\nAngi dato og milepæl eller aktivitet i kolonne D og E i tabellen.\nGjenta dette mønsteret for hver nye rad i tabellen til høyre.\nEksempeldata finner du i radene 3 til 26. Du kan endre eller slette eksempelinnholdet for å opprette ditt eget veikart.\nFortsett til celle A27 for neste instruksjon.",{"$f":"ROW($A1)","v":1},1,{"$f":"TODAY()","v":"2018-06-29"},"Start"]
[null,{"$f":"ROW($A2)","v":2},-2,{"$f":"D3+10","v":"2018-07-09"},"Problemanalyse\naktivitet 1"]
[null,3,1,{"$f":"D4+20","v":"2018-07-29"},"Utvikle lønnsomhet\naktivitet 1\naktivitet 2"]
[null,4,-1,{"$f":"D5+30","v":"2018-08-28"},"Se gjennom presentasjon"]
[null,5,{"v":-0.5,"d":"-1"},{"$f":"D6+40","v":"2018-10-07"},"Overordnet Kickoff\naktivitet 1\naktivitet 2"]
[null,6,2,{"$f":"D7+50","v":"2018-11-26"},"Overordnet justering\naktivitet 1\naktivitet 2\naktivitet 3"]
[null,7,{"v":0.5,"d":"1"},{"$f":"D8+60","v":"2019-01-25"},"Oppkjøp fra interessenter"]
[null,8,-1,{"$f":"D9+70","v":"2019-04-05"},"Ressursutvalg"]
[null,9,{"v":0.5,"d":"1"},{"$f":"D10+80","v":"2019-06-24"},"Teamopprettelse\naktivitet 1 "]
[null,10,-2,{"$f":"D11+90","v":"2019-09-22"},"Team-Kickoff\naktivitet 1 \naktivitet 2\naktivitet 3\nAktivitet 4"]
[null,11,3,{"$f":"D12+100","v":"2019-12-31"},"Starte datainnsamling"]
[null,12,-1,{"$f":"D13+90","v":"2020-03-30"},"Dataanalyse"]
[null,13,1,{"$f":"D14+80","v":"2020-06-18"},"Utforming"]
[null,14,1,{"$f":"D15+70","v":"2020-08-27"},"Konseptbevis"]
[null,15,-3,{"$f":"D16+60","v":"2020-10-26"},"Teste og analysere"]
[null,16,-2,{"$f":"D17+50","v":"2020-12-15"},"Ny utforming"]
[null,17,2,{"$f":"D18+40","v":"2021-01-24"},"Utvikle på nytt"]
[null,18,-1,{"$f":"D19+30","v":"2021-02-23"},"Teste og analysere"]
[null,19,1,{"$f":"D20+20","v":"2021-03-15"},"Ny utforming"]
[null,20,-3,{"$f":"D21+10","v":"2021-03-25"},"Utvikle på nytt"]
[null,21,2,{"$f":"D22+20","v":"2021-04-14"},"Siste test"]
[null,22,1,{"$f":"D23+30","v":"2021-05-14"},"Beta-test"]
[null,23,-3,{"$f":"D24+40","v":"2021-06-23"},"Se gjennom"]
[null,24,-2,{"$f":"D25+50","v":"2021-08-12"},"Klargjøre for markedsføring"]
["Hvis du vil legge til flere rader i tabellen for Veikartmilepæler, setter du helt enkelt inn en ny rad ovenfor denne.\nDet finnes ingen ytterligere instruksjoner i dette regnearket.",null,"Sett inn ny rad ovenfor denne for å legge til flere milepæler."]

{"sheet":"Veikart","index":1,"n_rows":3,"n_cols":4,"rows_kept":3}
["Et diagram som viser milepælene fra Milepæler-regnearket i denne regnearket. \nÅrene angis i cellene B2, C2 og D2, og stilen Overskrift 3 har blitt tatt i bruk.\n10 milepæler kartlegges om gangen. \nBruk rullefeltet i cellene B4 til D4 for å navigere gjennom veikartet.\nTidslinjeårene finner du i cellene B3 til D3.\nDet finnes ingen ytterligere instruksjoner i dette regnearket."]
[]
[null,{"$f":"Diagramdata!B20","v":2018},{"$f":"Diagramdata!B21","v":""},{"$f":"Diagramdata!B22","v":2019}]

{"sheet":"Om","index":2,"n_rows":5,"n_cols":1,"rows_kept":5}
["Om denne arbeidsboken"]
["Veiledning for skjermlesere"]
["Det finnes fire regneark i denne arbeidsboken. \n\nMilepæler\nVeikart\nOm\nDiagramdata (skjult)\n\nInstruksjonene for hvert regneark finner du i kolonne A, celle A1 i hvert regneark. De er skrevet med skjult tekst. Hvert trinn veileder deg gjennom informasjonen i den raden. Hvert etterfølgende trinn fortsetter i celle A2 og A3 og så videre, med mindre annet er uttrykkelig angitt. Instruksjonsteksten kan for eksempel si «fortsett til celle A6» for det neste trinnet. \n\nSkjult tekst skrives ikke ut.\n\nHvis du vil fjerne instruksjonene fra regnearkene, sletter du helt enkelt kolonne A.\n"]
["Dette veikartet bruker posisjoner for å plotte milepæler og aktiviteter. Du kan bruke posisjoner for å legge vekt på en milepæl eller aktivitet. Du justerer helt enkelt verdiene i henhold til hvor mye du ønsker å vektlegge milepælene. Milepæl / aktivitet 3 kan for eksempel ha mer vektlegging enn milepæl / aktivitet 2. Hvis du ønsker å angi dette i diagrammet, bruker du en høyere plasseringsverdi for milepæl / aktivitet 3 enn for milepæl / aktivitet 2.  \n"]
["Dette er den siste instruksjonen i dette regnearket."]

{"sheet":"Diagramdata","index":3,"n_rows":26,"n_cols":4,"rows_kept":26,"hidden":true}
["Data for å opprette den dynamiske kartleggingen finner du i dette regnearket. Ikke slett dette regnearket!\nHvis du sletter dette regnearket, kan du påvirke den dynamiske funksjonen til arbeidsboken.","Ikke slett dette regnearket!"]
["Tittelen for tabellen er i celle B2.","Dynamisk diagraminnhold"]
["Tabelloverskrifter finnes i cellene B3 til D3. \nDenne tabellen oppdateres automatisk basert på innholdet som angis i Milepæler-regnearket.\nAdvarsel: Hvis du endrer eller sletter innholdet i denne tabellen, kan det påvirke den dynamiske oppdateringen av Veikart-diagrammet i Veikart-regnearket.\nFortsett til celle A15 for neste instruksjon.","Dato","Arrangementer","Posisjon"]
[null,{"$f":"IFERROR(IF(LEN(Milepæler!D3)=0,\"\",INDEX(RoadmapMilestones[],Milepæler!$B3+$B$17,3)),\"\")","v":"2018-06-29"},{"$f":"IFERROR(IF(LEN(Milepæler!E3)=0,\"\",INDEX(RoadmapMilestones[],Milepæler!$B3+$B$17,4)),\"\")","v":"Start"},{"$f":"IFERROR(INDEX(RoadmapMilestones[],Milepæler!$B3+$B$17,2),\"\")","v":1}]
[null,{"$f":"IFERROR(IF(LEN(Milepæler!D4)=0,\"\",INDEX(RoadmapMilestones[],Milepæler!$B4+$B$17,3)),\"\")","v":"2018-07-09"},{"$f":"IFERROR(IF(LEN(Milepæler!E4)=0,\"\",INDEX(RoadmapMilestones[],Milepæler!$B4+$B$17,4)),\"\")","v":"Problemanalyse\naktivitet 1"},{"$f":"IFERROR(INDEX(RoadmapMilestones[],Milepæler!$B4+$B$17,2),\"\")","v":-2}]
[null,{"$f":"IFERROR(IF(LEN(Milepæler!D5)=0,\"\",INDEX(RoadmapMilestones[],Milepæler!$B5+$B$17,3)),\"\")","v":"2018-07-29"},{"$f":"IFERROR(IF(LEN(Milepæler!E5)=0,\"\",INDEX(RoadmapMilestones[],Milepæler!$B5+$B$17,4)),\"\")","v":"Utvikle lønnsomhet\naktivitet 1\naktivitet 2"},{"$f":"IFERROR(INDEX(RoadmapMilestones[],Milepæler!$B5+$B$17,2),\"\")","v":1}]
[null,{"$f":"IFERROR(IF(LEN(Milepæler!D6)=0,\"\",INDEX(RoadmapMilestones[],Milepæler!$B6+$B$17,3)),\"\")","v":"2018-08-28"},{"$f":"IFERROR(IF(LEN(Milepæler!E6)=0,\"\",INDEX(RoadmapMilestones[],Milepæler!$B6+$B$17,4)),\"\")","v":"Se gjennom presentasjon"},{"$f":"IFERROR(INDEX(RoadmapMilestones[],Milepæler!$B6+$B$17,2),\"\")","v":-1}]
[null,{"$f":"IFERROR(IF(LEN(Milepæler!D7)=0,\"\",INDEX(RoadmapMilestones[],Milepæler!$B7+$B$17,3)),\"\")","v":"2018-10-07"},{"$f":"IFERROR(IF(LEN(Milepæler!E7)=0,\"\",INDEX(RoadmapMilestones[],Milepæler!$B7+$B$17,4)),\"\")","v":"Overordnet Kickoff\naktivitet 1\naktivitet 2"},{"$f":"IFERROR(INDEX(RoadmapMilestones[],Milepæler!$B7+$B$17,2),\"\")","v":-0.5}]
[null,{"$f":"IFERROR(IF(LEN(Milepæler!D8)=0,\"\",INDEX(RoadmapMilestones[],Milepæler!$B8+$B$17,3)),\"\")","v":"2018-11-26"},{"$f":"IFERROR(IF(LEN(Milepæler!E8)=0,\"\",INDEX(RoadmapMilestones[],Milepæler!$B8+$B$17,4)),\"\")","v":"Overordnet justering\naktivitet 1\naktivitet 2\naktivitet 3"},{"$f":"IFERROR(INDEX(RoadmapMilestones[],Milepæler!$B8+$B$17,2),\"\")","v":2}]
[null,{"$f":"IFERROR(IF(LEN(Milepæler!D9)=0,\"\",INDEX(RoadmapMilestones[],Milepæler!$B9+$B$17,3)),\"\")","v":"2019-01-25"},{"$f":"IFERROR(IF(LEN(Milepæler!E9)=0,\"\",INDEX(RoadmapMilestones[],Milepæler!$B9+$B$17,4)),\"\")","v":"Oppkjøp fra interessenter"},{"$f":"IFERROR(INDEX(RoadmapMilestones[],Milepæler!$B9+$B$17,2),\"\")","v":0.5}]
[null,{"$f":"IFERROR(IF(LEN(Milepæler!D10)=0,\"\",INDEX(RoadmapMilestones[],Milepæler!$B10+$B$17,3)),\"\")","v":"2019-04-05"},{"$f":"IFERROR(IF(LEN(Milepæler!E10)=0,\"\",INDEX(RoadmapMilestones[],Milepæler!$B10+$B$17,4)),\"\")","v":"Ressursutvalg"},{"$f":"IFERROR(INDEX(RoadmapMilestones[],Milepæler!$B10+$B$17,2),\"\")","v":-1}]
[null,{"$f":"IFERROR(IF(LEN(Milepæler!D11)=0,\"\",INDEX(RoadmapMilestones[],Milepæler!$B11+$B$17,3)),\"\")","v":"2019-06-24"},{"$f":"IFERROR(IF(LEN(Milepæler!E11)=0,\"\",INDEX(RoadmapMilestones[],Milepæler!$B11+$B$17,4)),\"\")","v":"Teamopprettelse\naktivitet 1 "},{"$f":"IFERROR(INDEX(RoadmapMilestones[],Milepæler!$B11+$B$17,2),\"\")","v":0.5}]
[null,{"$f":"IFERROR(IF(LEN(Milepæler!D12)=0,\"\",INDEX(RoadmapMilestones[],Milepæler!$B12+$B$17,3)),\"\")","v":"2019-09-22"},{"$f":"IFERROR(IF(LEN(Milepæler!E12)=0,\"\",INDEX(RoadmapMilestones[],Milepæler!$B12+$B$17,4)),\"\")","v":"Team-Kickoff\naktivitet 1 \naktivitet 2\naktivitet 3\nAktivitet 4"},{"$f":"IFERROR(INDEX(RoadmapMilestones[],Milepæler!$B12+$B$17,2),\"\")","v":-2}]
[]
["Muligheten til å bla gjennom veikartet hjelpes ved bruk av en trinnvis verdi. Tittelen for denne muligheten er i celle B15.\nEn tabell med en overskrift og enkeltverdi er i cellene B16 og B17.\nFortsett til celle A19 for neste instruksjon.","Rullefunksjonalitet"]
[null,"Radøkning"]
[null,0]
[]
["Veikart-diagrammet kartlegger årene for tidslinjen. Årene må oppfanges fra Milepæler-listen for å oppnå dette. \nTittelen for denne inndelingen er År i celle B19. \nÅrverdiene genereres automatisk i cellene C20 til C22.\nAdvarsel: Hvis du sletter eller endrer disse årene, kan det endre nøyaktigheten til kartleggingen i Veikart-diagrammet.\nFortsett til celle A24 for neste instruksjon.","År"]
[null,{"$f":"IFERROR(YEAR(B4),\"\")","v":2018},"<-- året for startposisjonen i veikartet"]
[null,{"$f":"IFERROR(IF(YEAR($B$9)=$B$20,\"\",YEAR($B$9)),\"\")","v":""},"<-- året for mellomposisjonen i veikartet. Vær oppmerksom på at dette feltet kan være tomt hvis det er det samme året som startposisjonen i veikartet"]
[null,{"$f":"IFERROR(IF(YEAR($B$13)=$B$20,\"\",YEAR($B$13)),\"\")","v":2019},"<-- året for sluttposisjonen i veikartet. Vær oppmerksom på at dette feltet kan være tomt hvis det er det samme året som startposisjonen i veikartet"]
[]
["Hjulmerker i Veikart-diagrammet inneholder datoer fra det dynamiske diagraminnholdet i dette regnearket. Datoene er Første dato i celle C24, Mellomste dato i celle C25 og Siste dato i celle C26.\nDet finnes ingen ytterligere instruksjoner i dette regnearket.","Første dato",{"$f":"B4","v":"2018-06-29"}]
[null,"Mellomste dato",{"$f":"B9","v":"2018-11-26"}]
[null,"Siste dato",{"$f":"B13","v":"2019-09-22"}]